bitfinex/quotes_ETHUSD_20250824
["timestamp","ask_amount","ask_price","bid_price","bid_amount"]
[1756072998857,0.4299,4789.1,4788.9,0.004]
[1756072999058,0.1048,4789.0,4788.9,0.004]
[1756072999841,0.104,4789.4,4788.9,0.004]
[1756072999980,1.606,4790.5,4788.9,0.004]
[1756073000155,0.104,4789.8,4788.9,0.004]
[1756073000362,0.4299,4789.3,4788.9,0.004]
[1756073000814,1.606,4790.5,4788.9,0.004]
[1756073000969,1.606,4790.5,4788.9,3.004]
[1756073001170,0.63516022,4790.4,4788.9,0.004]
[1756073002462,0.20526022,4790.4,4788.9,0.004]
[1756073002799,0.4299,4790.3,4788.9,0.004]
[1756073003178,0.87645236,4790.3,4788.9,0.004]
[1756073003569,0.4299,4790.2,4788.9,2.09211864]
[1756073003769,0.4299,4790.2,4789.0,0.71803894]
[1756073004091,0.4299,4790.2,4788.9,2.09213292]
[1756073004292,0.4299,4790.2,4788.9,0.004]
[1756073005179,0.66,4790.1,4788.9,0.004]
[1756073005606,0.32676092,4789.9,4788.9,0.004]
[1756073005808,1.605,4789.8,4788.9,0.004]
[1756073006015,0.60216609,4789.7,4788.9,0.004]
[1756073006311,1.03206609,4789.7,4788.9,0.004]
[1756073006517,0.60216609,4789.7,4788.9,0.004]
[1756073006684,0.4299,4789.6,4788.9,0.004]
[1756073007684,3.811,4789.5,4788.9,0.004]
[1756073008015,0.68947953,4789.4,4788.9,0.004]
[1756073008228,1.13635316,4789.4,4788.9,0.004]
[1756073008529,1.44619683,4789.4,4788.9,0.004]
[1756073009128,1.01629683,4789.4,4788.9,0.004]
[1756073009284,1.605,4789.8,4788.9,0.004]
[1756073010303,0.1048,4789.0,4788.9,0.004]
[1756073013298,0.5347,4789.0,4788.9,0.004]
[1756073013708,4.3327,4789.0,4788.9,0.004]
[1756073013912,4.76597,4789.0,4788.9,0.004]
[1756073015393,4.76597,4789.0,4788.8,0.004]
[1756073015394,4.916,4788.9,4788.8,0.004]
[1756073015722,6.34446748,4788.2,4788.1,0.04]
[1756073015940,0.66,4787.9,4787.1,0.04]
[1756073016134,0.1048,4787.2,4787.1,0.04]
[1756073016291,2.0208,4787.2,4787.1,0.04]
[1756073016484,4.916,4786.9,4784.1,0.04]
[1756073016685,3.66,4786.7,4784.1,0.04]
[1756073016918,3.0,4786.5,4784.7,2.0899878]
[1756073017191,0.88088506,4786.4,4784.3,3.0]
[1756073017394,1.31078506,4786.4,4784.2,3.0]
[1756073017691,4.22827,4786.4,4785.1,2.12981491]
[1756073017923,3.795,4786.4,4785.2,2.08977643]
[1756073018289,3.795,4786.4,4785.1,0.04]
[1756073018491,0.4299,4786.3,4785.1,0.04]
[1756073019005,0.87646455,4786.3,4785.1,0.04]
[1756073019521,3.794,4786.2,4785.1,0.04]
[1756073019915,4.67017023,4786.2,4785.1,0.04]
[1756073020224,5.88688916,4786.2,4785.1,0.04]
[1756073020936,2.09288916,4786.2,4785.1,0.04]
[1756073021093,5.88588916,4786.2,4785.1,0.04]
[1756073022333,8.88588916,4786.2,4785.1,0.04]
[1756073022641,17.168568,4786.2,4785.1,0.04]
[1756073022938,16.71588916,4786.2,4785.1,0.04]
[1756073023104,5.74977681,4785.2,4785.1,0.04]
[1756073023307,5.74977681,4785.2,4784.1,0.04]
[1756073023308,0.66,4785.0,4784.1,0.04]
[1756073023513,0.74330352,4784.2,4784.1,0.04]
[1756073023713,6.58757375,4784.2,4784.1,0.04]
[1756073024048,11.81747842,4784.2,4784.1,0.04]
[1756073024249,10.70252313,4784.2,4784.1,0.04]
[1756073024920,11.02971507,4784.2,4784.1,0.04]
[1756073025123,10.36871507,4784.2,4784.1,0.04]
[1756073025431,7.28321914,4784.2,4784.1,0.04]
[1756073025595,6.59746217,4784.2,4784.1,0.04]
[1756073025797,6.17046217,4784.2,4784.1,0.04]
[1756073026193,7.28328537,4784.2,4784.1,0.04]
[1756073026426,6.70326217,4784.2,4784.1,0.04]
[1756073026635,8.03358839,4784.2,4784.1,0.04]
[1756073027398,8.03158839,4784.2,4784.1,0.04]
[1756073027642,7.37158839,4784.2,4784.1,0.04]
[1756073027934,12.51993169,4784.2,4784.1,0.04]
[1756073028532,11.03158839,4784.2,4784.1,0.04]
[1756073028833,6.94458839,4784.2,4784.1,0.04]
[1756073029032,7.37258839,4784.2,4784.1,0.04]
[1756073029405,3.15458839,4784.2,4784.1,0.04]
[1756073029730,7.37258839,4784.2,4784.1,0.04]
[1756073030143,8.85287342,4784.2,4784.1,0.04]
[1756073030445,7.04539645,4784.2,4783.6,0.004]
[1756073030608,0.1048,4783.7,4783.6,0.004]
[1756073030810,0.55107023,4783.7,4783.6,0.004]
[1756073031009,4.33907023,4783.7,4783.6,0.004]
[1756073031346,4.76707023,4783.7,4783.6,0.004]
[1756073031516,8.32227023,4783.7,4783.6,0.004]
[1756073031716,9.39355282,4783.7,4783.6,0.004]
[1756073031946,5.73555282,4783.7,4783.6,0.004]
[1756073032522,11.48598491,4783.7,4783.6,0.004]
[1756073032816,39.39555282,4783.7,4783.6,0.004]
[1756073033016,2.09061484,4783.3,4782.1,0.03]
[1756073033230,1.47887896,4782.6,4782.1,0.03]
[1756073033437,5.71314919,4782.5,4782.1,0.03]
[1756073033634,1.47887896,4782.2,4782.1,0.03]
[1756073033914,3.53214919,4782.2,4782.1,0.03]
[1756073034111,6.29654727,4782.2,4782.1,0.03]
[1756073034452,4.16343052,4782.2,4780.4,0.4467]
[1756073034611,1.47716379,4781.5,4780.4,0.4467]
[1756073034943,1.47716379,4781.5,4780.1,0.04]
[1756073034944,0.44627023,4781.4,4780.1,0.04]
[1756073035242,1.1079713,4781.2,4780.6,2.09177349]
[1756073035541,1.55424153,4781.2,4780.2,1.607]
[1756073035710,1.55424153,4781.2,4780.1,0.04]
[1756073035911,2.05327023,4781.2,4780.1,0.4867]
[1756073036217,4.69007742,4781.2,4780.1,0.04]
[1756073036437,30.66,4781.1,4780.1,0.04]
[1756073036746,1.47525564,4780.3,4780.1,0.04]
[1756073036959,4.24227023,4780.2,4780.1,0.04]
[1756073037111,5.85027023,4780.2,4780.1,0.04]
[1756073037451,6.58282282,4780.2,4780.1,0.04]
[1756073037657,0.44627023,4780.2,4780.1,0.4867]
[1756073038026,1.55241108,4780.2,4780.1,0.4867]
[1756073038380,2.20005759,4783.2,4780.1,0.4867]
[1756073038381,0.48017429,4780.5,4780.1,0.4867]
[1756073038706,0.55314002,4780.4,4780.1,0.04]
[1756073038877,1.47525564,4781.7,4780.1,0.04]
[1756073038878,1.10614085,4781.2,4780.1,0.04]
[1756073039039,1.10614085,4781.4,4780.1,0.55321213]
[1756073039365,1.10614085,4781.6,4780.1,0.55321213]
[1756073039548,1.10614085,4781.5,4780.6,2.0917797]
[1756073039749,1.10614085,4781.5,4780.2,0.66]
[1756073040045,1.10614085,4781.6,4780.3,2.09189845]
[1756073040259,1.10614085,4781.5,4780.4,3.0]
[1756073040588,1.10614085,4781.6,4780.3,0.47371524]
[1756073040859,1.10614085,4781.9,4780.5,1.608]
[1756073041065,1.10614085,4780.7,4780.1,0.04]
[1756073041254,5.409,4780.6,4780.1,0.04]
[1756073041430,3.08325564,4780.5,4779.3,2.0923165]
[1756073041626,0.1048,4780.1,4779.4,0.1048]
[1756073041827,1.1078482,4780.3,4779.7,0.1048]
[1756073042035,1.1078482,4780.4,4779.7,0.1048]
[1756073042238,1.1078482,4780.7,4779.4,0.66]
[1756073042565,1.2126482,4780.6,4780.0,0.1048]
[1756073042777,1.1078482,4780.3,4779.3,0.42247891]
[1756073043079,1.1078482,4780.1,4779.4,0.71669553]
[1756073043231,1.1078482,4780.0,4779.4,0.71669553]
[1756073043432,1.1078482,4779.8,4779.7,2.09218151]
[1756073043736,1.608,4781.2,4779.4,0.71669553]
[1756073043737,1.1078482,4780.0,4779.8,0.1048]
[1756073043947,1.1078482,4780.1,4779.5,0.1048]
[1756073044152,0.1048,4780.4,4779.1,1.652]
[1756073044373,1.47525564,4780.9,4779.7,3.0]
[1756073044553,1.47525564,4780.9,4779.6,10.1604481]
[1756073044554,1.47525564,4781.9,4781.4,2.09143649]
[1756073044860,1.51525564,4782.4,4781.0,3.0]
[1756073045067,0.04,4782.4,4781.0,3.0]
[1756073045272,0.04,4782.4,4781.1,0.4608]
[1756073045430,0.04,4782.4,4781.2,2.09151043]
[1756073045638,0.04,4782.4,4781.1,2.09156888]
[1756073046032,0.04,4782.4,4781.2,2.09151428]
[1756073046232,0.04,4782.4,4781.3,2.09148049]
[1756073046477,0.04,4782.4,4780.9,1.608]
[1756073046775,0.04,4782.4,4781.0,2.25241263]
[1756073046944,0.04,4782.4,4781.0,0.1608]
[1756073047566,1.47525564,4781.7,4778.5,1.608]
[1756073047733,3.23347034,4782.4,4778.5,1.608]
[1756073047734,1.47525564,4781.3,4779.0,2.09247]
[1756073047929,5.424,4781.2,4779.5,2.09226804]
[1756073048130,5.852,4781.2,4778.5,1.608]
[1756073048331,1.47525564,4780.9,4778.5,1.608]
[1756073048532,3.815,4780.8,4778.5,1.608]
[1756073048988,3.815,4780.8,4779.3,2.09233786]
[1756073049135,3.815,4780.8,4779.7,2.09218066]
[1756073049334,3.815,4780.8,4779.4,2.09228443]
[1756073049643,1.47525564,4780.4,4779.1,0.04]
[1756073049842,1.47525564,4779.7,4779.1,0.04]
[1756073050164,4.242,4779.6,4779.1,0.04]
[1756073050464,0.44590769,4779.5,4779.1,0.04]
[1756073050663,5.86790769,4779.4,4779.1,0.04]
[1756073050968,0.44590769,4779.3,4779.1,0.04]
[1756073051168,0.44590769,4779.2,4779.1,0.04]
[1756073051336,0.44590769,4779.2,4778.1,0.04]
[1756073051337,1.69722562,4779.2,4778.1,0.04]
[1756073051671,1.69722562,4779.2,4777.0,0.077]
[1756073051672,0.66,4778.7,4777.0,0.077]
[1756073051972,1.48752186,4777.3,4777.0,0.077]
[1756073052265,4.69690769,4777.2,4777.0,0.077]
[1756073052567,0.44590769,4777.2,4777.0,0.077]
[1756073052771,4.26790769,4777.2,4777.0,0.077]
[1756073053065,4.69830769,4777.2,4777.0,0.077]
[1756073054389,0.44590769,4777.2,4777.0,0.077]
[1756073054667,0.55070769,4777.2,4777.0,0.077]
[1756073054869,0.98110769,4777.2,4777.0,0.077]
[1756073055044,4.37770769,4777.2,4777.0,0.077]
[1756073055535,0.55070769,4777.2,4777.0,0.077]
[1756073055734,0.44590769,4777.2,4777.0,2.17034327]
[1756073055935,3.828,4778.3,4777.1,0.48085759]
[1756073056136,0.44453766,4778.2,4777.1,0.04]
[1756073056338,0.87493766,4778.1,4777.1,0.04]
[1756073056543,0.44453766,4778.0,4777.1,0.04]
[1756073056849,0.44453766,4777.9,4777.1,0.04]
[1756073057050,2.05353766,4777.8,4777.1,0.04]
[1756073057345,0.44453766,4777.7,4777.1,0.04]
[1756073057567,0.44453766,4777.6,4777.1,0.04]
[1756073057760,0.44453766,4777.5,4777.1,0.04]
[1756073057958,0.44453766,4777.4,4777.1,0.04]
[1756073058173,0.44453766,4777.3,4777.1,0.04]
[1756073058359,0.44453766,4777.2,4777.1,0.04]
[1756073059551,0.87493766,4777.2,4777.1,0.04]
[1756073060050,1.34463143,4777.2,4777.1,0.04]
[1756073060282,5.16963143,4777.2,4777.1,0.04]
[1756073060580,5.16763143,4777.2,4777.1,0.04]
[1756073061378,5.16763143,4777.2,4777.1,0.044]
[1756073061379,0.44453766,4777.2,4777.1,0.044]
[1756073062157,4.26753766,4777.2,4777.1,0.044]
[1756073062588,4.69793766,4777.2,4777.1,0.044]
[1756073063484,0.44453766,4777.2,4777.1,0.044]
[1756073064368,0.44453766,4777.2,4777.1,2.13732021]
[1756073064573,0.44453766,4777.2,4777.1,0.47477825]
[1756073064816,0.44453766,4777.2,4777.1,0.044]
[1756073065275,2.48393766,4777.2,4777.1,0.044]
[1756073065780,2.0394,4777.2,4777.1,0.044]
[1756073066088,2.78263081,4777.2,4777.0,0.077]
[1756073066301,0.4304,4777.1,4777.0,0.077]
[1756073066501,1.23623722,4777.1,4777.0,0.077]
[1756073066706,2.09340249,4777.0,4776.1,0.04]
[1756073066934,0.19311384,4776.9,4776.1,0.04]
[1756073067228,1.917,4776.7,4776.1,0.04]
[1756073067371,0.1048,4776.2,4773.5,0.1048]
[1756073067572,5.8654,4776.1,4773.6,0.205]
[1756073067787,0.1048,4775.2,4774.9,2.09426929]
[1756073068009,0.1048,4775.2,4774.0,2.09466623]
[1756073068010,1.609,4776.1,4775.4,2.09406319]
[1756073068223,3.828,4776.2,4775.1,2.09415616]
[1756073068224,0.1048,4775.6,4775.1,2.09415616]
[1756073068384,0.1048,4775.6,4775.1,0.24039562]
[1756073068584,0.44488067,4776.4,4776.2,2.09371139]
[1756073068910,3.83,4777.0,4775.2,0.205]
[1756073069075,0.44488248,4776.9,4775.4,2.09406541]
[1756073069407,0.44488248,4776.8,4775.2,0.205]
[1756073069706,4.27388248,4776.7,4775.8,2.09388618]
[1756073069923,0.04,4776.4,4775.2,3.205]
[1756073070077,0.44488248,4776.3,4775.3,0.5255]
[1756073070280,0.04,4776.4,4774.4,1.609]
[1756073070496,0.44499479,4776.3,4775.2,2.09412292]
[1756073070678,3.868,4776.4,4775.2,2.09412292]
[1756073070679,0.44499479,4776.2,4775.2,2.09412292]
[1756073070988,0.44499479,4776.1,4775.1,0.205]
[1756073071343,0.04,4776.4,4775.2,0.66]
[1756073071482,0.04,4776.4,4776.2,2.09371309]
[1756073071876,0.04,4776.4,4775.3,1.815]
[1756073072079,0.04,4776.4,4775.4,0.2475]
[1756073072374,0.04,4776.4,4774.1,2.09461443]
[1756073072375,5.8704,4776.3,4774.1,2.09461443]
[1756073072585,0.87545064,4776.2,4773.8,0.205]
[1756073072785,4.29005064,4776.1,4774.3,2.09450583]
[1756073073020,0.44505064,4776.0,4775.3,0.004]
[1756073073196,0.44505064,4775.9,4775.3,0.004]
[1756073073406,0.44505064,4775.8,4775.3,0.004]
[1756073073623,3.843,4776.1,4775.3,0.004]
[1756073073922,0.4451094,4776.0,4775.3,0.004]
[1756073074076,0.4451094,4775.9,4775.3,0.004]
[1756073074276,0.4451094,4775.8,4775.3,0.004]
[1756073074473,0.44495578,4775.7,4775.3,0.004]
[1756073074725,0.4304,4775.7,4775.3,0.004]
[1756073074878,0.87238422,4775.6,4775.3,0.004]
[1756073075073,0.44494422,4775.5,4775.3,0.004]
[1756073075375,0.44494422,4775.4,4775.3,0.004]
[1756073075793,0.87534422,4775.4,4775.3,0.004]
[1756073076008,0.44494422,4775.4,4775.3,0.004]
[1756073076216,0.44494422,4775.4,4771.6,2.09571529]
[1756073076217,1.34697864,4775.4,4771.6,2.09571529]
[1756073076508,0.74134654,4774.9,4772.0,0.209]
[1756073076700,5.05229076,4774.8,4772.1,2.13547166]
[1756073076895,1.61669076,4774.7,4772.5,2.09533452]
[1756073077109,1.13722728,4774.6,4772.5,2.09532259]
[1756073077310,0.44494422,4774.5,4772.3,2.09542504]
[1756073077525,2.48534422,4774.4,4772.9,2.09516129]
[1756073077824,0.44494422,4774.3,4772.8,0.004]
[1756073078104,0.44494422,4774.2,4772.8,0.004]
[1756073078271,0.44494422,4774.1,4772.8,0.004]
[1756073078475,0.1048,4773.2,4772.8,0.004]
[1756073079324,0.44637249,4773.2,4772.8,0.004]
[1756073079488,0.55117249,4773.2,4772.8,0.004]
[1756073080238,0.98157249,4773.2,4772.8,0.004]
[1756073080526,5.14107249,4773.2,4772.8,0.004]
[1756073080679,6.87876445,4773.2,4772.8,0.004]
[1756073080876,2.09806546,4773.2,4772.1,0.04]
[1756073081124,0.74359511,4772.4,4772.1,0.04]
[1756073081277,0.44637249,4772.3,4772.1,0.04]
[1756073081476,3.866,4773.2,4772.1,0.04]
[1756073081477,0.445991,4772.2,4772.1,0.04]
[1756073081795,0.550791,4772.2,4772.1,0.04]
[1756073081996,0.55075288,4772.2,4772.1,0.04]
[1756073082201,1.88132817,4772.2,4772.1,0.04]
[1756073082516,5.14465288,4772.2,4772.1,0.04]
[1756073083233,1.27865288,4772.2,4772.1,0.04]
[1756073083394,5.14265288,4772.2,4772.1,0.04]
[1756073083589,1.27865288,4772.2,4772.1,0.04]
[1756073083805,5.14465288,4772.2,4772.1,0.04]
[1756073084023,4.41575288,4772.2,4772.1,0.04]
[1756073086516,1.61,4772.6,4772.1,0.3499]
[1756073086822,3.86,4772.7,4772.1,0.3499]
[1756073086823,0.54881969,4772.5,4772.1,0.3499]
[1756073087028,0.1048,4772.5,4772.1,0.3499]
[1756073088010,0.1048,4772.5,4772.1,0.04]
[1756073088992,3.857,4772.8,4772.1,0.04]
[1756073089331,0.1048,4772.2,4772.1,0.04]
[1756073089488,0.54892954,4772.2,4772.1,0.04]
[1756073089689,0.1048,4772.2,4772.1,0.04]
[1756073090410,0.5490276,4772.2,4772.1,0.04]
[1756073092430,3.9588,4772.5,4772.1,0.3499]
[1756073092733,1.611,4773.2,4772.1,0.85793449]
[1756073093029,0.54905848,4773.1,4772.4,0.1048]
[1756073093247,0.44425848,4773.0,4772.4,0.1048]
[1756073093536,0.1048,4773.1,4772.4,0.1048]
[1756073093699,0.44442927,4773.0,4772.1,0.04]
[1756073093929,0.1048,4772.5,4772.1,0.04]
[1756073094375,0.44476647,4772.4,4772.1,0.04]
[1756073094532,3.853,4772.4,4772.1,0.04]
[1756073094722,0.4447922,4772.3,4772.1,0.04]
[1756073094917,0.301,4772.2,4772.1,0.04]
[1756073095143,3.27311438,4772.2,4772.1,0.044]
[1756073097124,4.0144106,4772.2,4772.1,0.044]
[1756073097565,3.27311438,4772.2,4772.1,0.044]
[1756073098225,7.12511438,4772.2,4772.1,0.044]
[1756073098752,7.45310806,4772.2,4772.1,0.044]
[1756073099170,8.56364276,4772.2,4772.1,0.044]
[1756073099357,4.71306957,4772.2,4772.1,0.044]
[1756073099531,4.71307514,4772.2,4772.1,0.044]
[1756073099721,6.66217438,4772.2,4772.1,0.044]
[1756073100056,5.90577438,4772.2,4772.1,0.044]
[1756073100260,0.44477438,4772.2,4772.1,2.1395135]
[1756073100463,0.001,4772.8,4772.2,0.66]
[1756073100639,0.001,4772.8,4772.1,0.044]
[1756073100958,0.55647148,4772.5,4772.1,0.044]
[1756073101159,4.29611509,4772.4,4772.1,0.044]
[1756073101363,0.44511509,4772.3,4772.1,0.044]
[1756073101563,0.44511509,4772.2,4772.1,0.044]
[1756073102439,0.90051509,4772.2,4772.1,0.044]
[1756073102635,1.65928733,4772.2,4771.6,0.003]
[1756073102957,1.11412969,4771.9,4771.6,0.003]
[1756073103142,1.55924478,4771.8,4771.6,0.003]
[1756073103325,2.0664,4772.1,4771.6,0.003]
[1756073103326,1.55924478,4771.7,4771.6,0.003]
[1756073103533,0.44511509,4771.7,4771.6,0.003]
[1756073103856,4.42449408,4772.6,4771.6,0.003]
[1756073104036,1.19872544,4771.7,4771.6,0.003]
[1756073104225,6.38044101,4771.7,4771.6,0.003]
[1756073104429,3.17256089,4771.7,4771.6,0.003]
[1756073104624,7.15536089,4771.7,4771.6,0.003]
[1756073104948,0.44604101,4771.7,4771.6,0.003]
[1756073105463,0.55784045,4772.9,4771.7,0.66]
[1756073105762,0.55784045,4773.4,4772.4,2.09534159]
[1756073105926,0.55784045,4772.6,4771.6,0.003]
[1756073106128,0.44646222,4772.5,4771.9,2.09558003]
[1756073106358,0.44646222,4772.4,4771.6,0.003]
[1756073106560,0.44646222,4772.3,4771.6,0.003]
[1756073106768,0.44646222,4772.2,4771.6,0.003]
[1756073106974,0.44646222,4772.1,4771.6,0.003]
[1756073107139,0.44646222,4772.0,4771.6,0.003]
[1756073107460,0.44646222,4771.9,4771.6,0.003]
[1756073107766,0.44646222,4771.8,4771.6,0.003]
[1756073107963,0.44646222,4771.7,4771.6,0.003]
[1756073109065,4.44884045,4772.6,4771.7,2.09568916]
[1756073109267,0.44699281,4772.5,4772.0,2.09551734]
[1756073109468,0.44699281,4772.5,4771.6,0.003]
[1756073109469,0.44699281,4772.4,4771.6,0.003]
[1756073109653,0.44699281,4772.3,4772.0,2.09555204]
[1756073109962,0.44699281,4772.2,4772.0,2.09555204]
[1756073110168,6.40439281,4772.1,4771.6,0.003]
[1756073110333,0.55917339,4771.7,4771.6,0.003]
[1756073110536,0.44699281,4771.7,4771.6,0.003]
[1756073110732,1.61808854,4771.7,4771.6,0.003]
[1756073112569,2.36365306,4771.7,4771.6,0.007]
[1756073112769,1.81218607,4771.7,4771.6,0.007]
[1756073113171,5.70418607,4771.7,4771.6,0.007]
[1756073113343,0.64109034,4771.7,4771.6,0.007]
[1756073113545,4.80389281,4771.7,4771.6,0.007]
[1756073113742,5.54913363,4771.7,4771.6,0.007]
[1756073113979,5.08523363,4771.7,4771.6,0.007]
[1756073114179,5.54913363,4771.7,4771.6,0.007]
[1756073114347,5.66425929,4771.7,4771.6,0.007]
[1756073114680,6.40950011,4771.7,4771.6,0.007]
[1756073115581,5.76905929,4771.7,4771.6,0.007]
[1756073116544,37.07854878,4771.7,4771.6,0.007]
[1756073116781,38.9630289,4771.7,4771.1,0.04]
[1756073116953,0.1048,4771.2,4771.1,0.04]
[1756073117142,9.04879281,4771.2,4771.1,0.04]
[1756073117483,9.70666242,4771.2,4771.1,0.04]
[1756073117690,2.09618467,4770.6,4770.1,0.04]
[1756073117848,0.1048,4770.2,4770.1,0.04]
[1756073118146,1.53945243,4770.2,4770.1,0.04]
[1756073118352,4.43879281,4770.2,4770.1,0.04]
[1756073118991,6.05079281,4770.2,4770.1,0.04]
[1756073120181,5.94599281,4770.2,4770.1,0.04]
[1756073120383,5.6038,4770.2,4770.1,0.04]
[1756073120547,0.1048,4770.2,4770.1,0.04]
[1756073120953,3.9958,4770.2,4770.1,0.04]
[1756073121950,3.889,4771.0,4770.1,0.2932]
[1756073122283,0.1048,4770.5,4770.1,0.04]
[1756073122998,3.887,4770.4,4770.1,0.04]
[1756073123296,4.28918,4770.3,4770.1,0.04]
[1756073123453,3.89,4770.3,4770.1,0.04]
[1756073124767,3.89,4770.3,4770.2,0.3106]
[1756073125091,5.498,4770.7,4770.2,0.3106]
[1756073125385,3.886,4770.7,4770.2,0.5638]
[1756073125586,0.32806366,4771.2,4770.2,0.3106]
[1756073125786,3.884,4771.1,4770.2,0.3106]
[1756073126081,3.884,4771.0,4770.2,0.3106]
[1756073126282,1.612,4771.5,4770.2,0.3106]
[1756073126451,0.32804178,4771.9,4770.3,0.2532]
[1756073126652,0.001,4772.2,4771.8,0.3106]
[1756073126853,0.001,4772.2,4772.1,2.0955135]
[1756073127057,0.001,4772.2,4772.1,2.4061135]
[1756073127259,0.001,4772.2,4772.1,2.82420498]
[1756073127454,0.001,4772.7,4772.5,0.66]
[1756073127653,0.001,4773.2,4772.9,2.09514707]
[1756073128087,0.001,4773.2,4773.0,0.9102]
[1756073128281,0.001,4773.2,4773.1,2.09507447]
[1756073128480,0.001,4773.2,4773.1,3.08931662]
[1756073129256,1e-08,4773.2,4773.1,6.74931662]
[1756073129696,1.02278853,4776.9,4773.6,0.66]
[1756073129915,1e-08,4775.4,4775.3,2.09410927]
[1756073130055,0.001,4776.9,4775.3,1.612]
[1756073130398,0.001,4776.9,4775.6,3.0]
[1756073130699,0.001,4776.9,4775.1,3.0]
[1756073130700,0.4639,4776.3,4773.9,1.612]
[1756073130859,0.4639,4776.3,4774.1,0.66]
[1756073131200,0.4639,4776.3,4774.0,3.0]
[1756073131404,0.4639,4776.3,4773.1,0.74404215]
[1756073131556,3.895,4776.2,4773.2,4.70582422]
[1756073131762,1.613,4776.9,4774.1,2.09461698]
[1756073131998,1.613,4776.9,4773.3,4.1452]
[1756073131999,1.613,4776.9,4774.3,0.66]
[1756073132292,0.4639,4776.6,4774.7,0.66]
[1756073132460,1.613,4776.9,4774.9,3.66]
[1756073132655,1.613,4776.9,4775.0,0.85212]
[1756073132864,0.4639,4776.5,4775.1,5.09419128]
[1756073133089,0.1048,4776.2,4775.0,0.85212]
[1756073133303,0.1048,4775.9,4775.3,2.09410796]
[1756073133597,0.1448,4776.4,4775.7,0.1048]
[1756073133773,0.1448,4776.4,4776.0,2.09380116]
[1756073133968,0.1448,4776.4,4775.7,0.1048]
[1756073134176,0.1448,4776.4,4775.7,2.19872168]
[1756073134472,0.1448,4776.4,4775.8,2.09387897]
[1756073134690,0.1448,4776.4,4775.7,0.60007823]
[1756073134894,0.1448,4776.4,4775.7,2.1987283]
[1756073135365,0.1448,4776.4,4775.7,0.1048]
[1756073135800,0.04,4776.4,4776.3,0.1048]
[1756073136013,0.1448,4776.4,4775.7,0.1048]
[1756073136666,0.1448,4776.4,4772.6,0.15652346]
[1756073136667,0.1448,4776.4,4775.5,0.1048]
[1756073136884,0.1448,4776.4,4774.9,3.66]
[1756073136885,0.04,4776.4,4775.8,0.1048]
[1756073137092,0.04,4776.4,4775.9,2.19863139]
[1756073137592,0.04,4776.4,4776.3,2.09367083]
[1756073138879,0.04,4776.4,4776.2,2.1985119]
[1756073139474,0.04,4776.4,4776.3,2.09367083]
[1756073139982,0.04,4776.4,4776.2,0.1048]
[1756073140186,0.04,4776.4,4776.3,2.09367083]
[1756073140385,0.04,4776.4,4776.3,3.82392547]
[1756073141400,0.04,4776.4,4776.3,2.40427083]
[1756073141693,0.04,4776.4,4776.3,2.09367083]
[1756073142068,0.04,4776.4,4776.2,0.1048]
[1756073142502,0.04,4776.4,4776.3,2.09367083]
[1756073142672,0.04,4776.4,4776.2,0.1048]
[1756073143318,0.04,4776.4,4776.1,2.09375097]
[1756073143319,0.4605,4776.3,4774.7,3.881]
[1756073143621,0.1448,4776.4,4775.7,0.1048]
[1756073144264,0.1448,4776.4,4775.8,2.09388493]
[1756073144459,0.1448,4776.4,4775.7,0.1048]
[1756073144700,0.2941,4775.8,4775.7,0.1048]
[1756073144902,0.2941,4775.8,4773.4,2.09493714]
[1756073144903,2.0705,4775.8,4773.4,2.09493714]
[1756073145108,2.0705,4775.8,4772.7,0.2542]
[1756073145109,1.61,4775.8,4773.1,3.917]
[1756073145307,0.1048,4774.5,4773.8,2.19952603]
[1756073145493,0.1048,4774.5,4773.8,0.1048]
[1756073145860,0.1048,4774.5,4774.1,2.09463519]
[1756073146065,0.1048,4774.5,4773.8,0.1048]
[1756073146266,1.93775937,4775.8,4774.1,0.66]
[1756073146499,0.1048,4775.6,4775.2,2.09412845]
[1756073146694,0.1048,4775.6,4775.5,2.09402156]
[1756073146866,0.1048,4775.6,4774.5,0.66]
[1756073146867,0.1048,4776.1,4775.6,2.09397072]
[1756073147213,0.1048,4776.3,4775.4,0.66]
[1756073147399,0.04,4776.4,4775.8,0.1048]
[1756073147563,0.04,4776.4,4775.4,0.1048]
[1756073147564,0.1048,4776.0,4775.4,0.1048]
[1756073147910,0.1048,4776.0,4774.4,3.875]
[1756073147911,1.61,4776.2,4774.2,3.875]
[1756073148210,0.1048,4775.2,4774.6,0.1048]
[1756073148373,0.1048,4775.2,4774.1,1.61]
[1756073148709,0.4605,4775.4,4773.5,2.09486273]
[1756073148710,1.61,4775.3,4773.5,2.09486273]
[1756073149003,1.61,4775.3,4773.5,2.09489892]
[1756073149173,1.61,4775.3,4773.8,2.09474453]
[1756073149496,1.61,4775.3,4774.0,2.09467295]
[1756073149715,1.61,4775.3,4773.1,0.044]
[1756073149716,0.4605,4775.2,4773.1,0.044]
[1756073150006,0.4605,4775.2,4773.9,2.09469586]
[1756073150170,0.4605,4775.2,4774.2,2.09456453]
[1756073150679,0.4605,4775.2,4774.3,2.0945428]
[1756073150893,1.61,4775.3,4774.3,0.20945428]
[1756073151097,1.61,4776.0,4774.3,0.66]
[1756073151383,1.61,4776.0,4774.7,2.09433494]
[1756073151584,2.0705,4776.0,4773.6,3.355]
[1756073151813,1.05505,4775.9,4773.9,2.09472249]